[Event "*** SCC Grand Prix: Titled Tuesday Blitz"]
[Site "Chess.com"]
[Date "2020.09.29"]
[Round "4"]
[White "Msb2"]
[Black "almo64"]
[Result "1-0"]
[WhiteElo "2919"]
[BlackElo "2721"]
[TimeControl "180+1"]
[EndTime "10:37:10 PDT"]
[Termination "Msb2 won by resignation"]

1. d4 {[%clk 0:03:00.9]} 1... d5 {[%clk 0:02:59.3]} 2. c4 {[%clk 0:02:59.6]}
2... e6 {[%clk 0:02:59.1]} 3. Nc3 {[%clk 0:02:59]} 3... Nf6 {[%clk 0:02:59.7]}
4. cxd5 {[%clk 0:02:58.7]} 4... exd5 {[%clk 0:03:00]} 5. Bg5 {[%clk 0:02:59]}
5... Be7 {[%clk 0:03:00.5]} 6. e3 {[%clk 0:02:59.3]} 6... h6 {[%clk 0:03:00.9]}
7. Bf4 {[%clk 0:02:58.4]} 7... O-O {[%clk 0:02:59]} 8. Bd3 {[%clk 0:02:58.3]}
8... c5 {[%clk 0:02:56.4]} 9. h3 {[%clk 0:02:52.7]} 9... Nc6 {[%clk 0:02:55.1]}
10. Nf3 {[%clk 0:02:53.1]} 10... cxd4 {[%clk 0:02:51.2]} 11. exd4 {[%clk
0:02:52.5]} 11... Bd6 {[%clk 0:02:50.8]} 12. Bxd6 {[%clk 0:02:47.5]} 12... Qxd6
{[%clk 0:02:51.1]} 13. O-O {[%clk 0:02:48.2]} 13... Re8 {[%clk 0:02:49.2]} 14.
Qb3 {[%clk 0:02:43.5]} 14... Qb4 {[%clk 0:02:37]} 15. Nxd5 {[%clk 0:02:16.9]}
15... Nxd5 {[%clk 0:02:36]} 16. Qxd5 {[%clk 0:02:17.8]} 16... Qxb2 {[%clk
0:02:22.1]} 17. Rfe1 {[%clk 0:01:59.5]} 17... Be6 {[%clk 0:01:17.7]} 18. Qe4
{[%clk 0:01:59.5]} 18... g6 {[%clk 0:00:58.6]} 19. Qf4 {[%clk 0:01:53.7]} 19...
Nb4 {[%clk 0:00:52.6]} 20. Bxg6 {[%clk 0:01:42]} 20... fxg6 {[%clk 0:00:27.5]}
21. Qxh6 {[%clk 0:01:42.1]} 21... Qc2 {[%clk 0:00:04.4]} 22. Ng5 {[%clk
0:01:40.7]} 22... Nd3 {[%clk 0:00:03.9]} 23. Qxg6+ {[%clk 0:01:27.7]} 23... Kf8
{[%clk 0:00:03.8]} 24. Nh7+ {[%clk 0:01:28.2]} 1-0

[Event "*** SCC Grand Prix: Titled Tuesday Blitz"]
[Site "Chess.com"]
[Date "2020.09.29"]
[Round "4"]
[White "A-Fier"]
[Black "AleksanderHnydiuk"]
[Result "1/2-1/2"]
[WhiteElo "2842"]
[BlackElo "2555"]
[TimeControl "180+1"]
[EndTime "10:37:13 PDT"]
[Termination "Game drawn by agreement"]

1. e4 {[%clk 0:03:00.9]} 1... c5 {[%clk 0:02:58.9]} 2. Nf3 {[%clk 0:03:00.7]}
2... e6 {[%clk 0:02:58.9]} 3. b4 {[%clk 0:02:59]} 3... cxb4 {[%clk 0:02:52.1]}
4. a3 {[%clk 0:02:59]} 4... Nf6 {[%clk 0:02:47.7]} 5. e5 {[%clk 0:02:58.2]} 5...
Nd5 {[%clk 0:02:47.3]} 6. axb4 {[%clk 0:02:58.7]} 6... Nxb4 {[%clk 0:02:44.5]}
7. c3 {[%clk 0:02:57.3]} 7... N4c6 {[%clk 0:02:43.9]} 8. d4 {[%clk 0:02:57.1]}
8... d6 {[%clk 0:02:43.8]} 9. exd6 {[%clk 0:02:57.4]} 9... Bxd6 {[%clk
0:02:43.1]} 10. Bd3 {[%clk 0:02:57.9]} 10... Nd7 {[%clk 0:02:39.7]} 11. O-O
{[%clk 0:02:58.2]} 11... b6 {[%clk 0:02:37.2]} 12. Re1 {[%clk 0:02:55.9]} 12...
O-O {[%clk 0:02:27]} 13. Bc2 {[%clk 0:02:48.3]} 13... Bb7 {[%clk 0:02:11]} 14.
Qd3 {[%clk 0:02:47.2]} 14... g6 {[%clk 0:02:09.5]} 15. Bh6 {[%clk 0:02:43.6]}
15... Re8 {[%clk 0:02:09.3]} 16. Nbd2 {[%clk 0:02:42.4]} 16... Bf8 {[%clk
0:01:47.4]} 17. Bxf8 {[%clk 0:02:35.2]} 17... Nxf8 {[%clk 0:01:47.3]} 18. h4
{[%clk 0:02:36.1]} 18... e5 {[%clk 0:01:21.4]} 19. dxe5 {[%clk 0:02:30]} 19...
Qxd3 {[%clk 0:01:20.5]} 20. Bxd3 {[%clk 0:02:30.9]} 20... Ne6 {[%clk 0:01:07.8]}
21. Ne4 {[%clk 0:02:28.7]} 21... Nf4 {[%clk 0:00:47.8]} 22. Bb5 {[%clk
0:02:23.5]} 22... a6 {[%clk 0:00:47.8]} 23. Bxc6 {[%clk 0:02:21]} 23... Bxc6
{[%clk 0:00:48.7]} 24. Nf6+ {[%clk 0:02:21]} 24... Kg7 {[%clk 0:00:46.9]} 25.
Nxe8+ {[%clk 0:02:21.3]} 25... Rxe8 {[%clk 0:00:47.2]} 26. Rxa6 {[%clk
0:02:15.7]} 26... Bxf3 {[%clk 0:00:33.1]} 27. gxf3 {[%clk 0:02:16.6]} 27... Rc8
{[%clk 0:00:32.9]} 28. Re4 {[%clk 0:02:07.5]} 28... Ne6 {[%clk 0:00:23.3]} 29.
Rxb6 {[%clk 0:02:07.6]} 29... Rxc3 {[%clk 0:00:22.2]} 30. Kg2 {[%clk 0:02:07.9]}
30... Rc7 {[%clk 0:00:17]} 31. f4 {[%clk 0:02:05.7]} 31... Kh6 {[%clk
0:00:13.6]} 32. Kg3 {[%clk 0:02:03.7]} 32... Ng7 {[%clk 0:00:13.4]} 33. Rf6
{[%clk 0:01:51.3]} 33... Nh5+ {[%clk 0:00:12.8]} 34. Kg4 {[%clk 0:01:50.5]}
34... Nxf6+ {[%clk 0:00:13.7]} 35. exf6 {[%clk 0:01:51.3]} 35... Rc6 {[%clk
0:00:13.5]} 1/2-1/2

[Event "*** SCC Grand Prix: Titled Tuesday Blitz"]
[Site "Chess.com"]
[Date "2020.09.29"]
[Round "4"]
[White "markberk"]
[Black "antoszu"]
[Result "1/2-1/2"]
[WhiteElo "2383"]
[BlackElo "2601"]
[TimeControl "180+1"]
[EndTime "10:37:15 PDT"]
[Termination "Game drawn by agreement"]

1. Nf3 {[%clk 0:03:00.9]} 1... d5 {[%clk 0:02:59.4]} 2. g3 {[%clk 0:03:00.6]}
2... c6 {[%clk 0:02:58.1]} 3. Bg2 {[%clk 0:03:00.4]} 3... Bg4 {[%clk 0:02:58.2]}
4. c4 {[%clk 0:02:59]} 4... e6 {[%clk 0:02:57.5]} 5. O-O {[%clk 0:02:58]} 5...
Nd7 {[%clk 0:02:54.7]} 6. d4 {[%clk 0:02:56]} 6... Ngf6 {[%clk 0:02:53.6]} 7.
Nc3 {[%clk 0:02:56]} 7... Be7 {[%clk 0:02:52.4]} 8. Qb3 {[%clk 0:02:55.4]} 8...
Qc8 {[%clk 0:02:48.7]} 9. Bf4 {[%clk 0:02:46.7]} 9... O-O {[%clk 0:02:44]} 10.
Rac1 {[%clk 0:02:41]} 10... Nb6 {[%clk 0:02:33.2]} 11. Ne5 {[%clk 0:02:26.4]}
11... dxc4 {[%clk 0:02:28.3]} 12. Nxc4 {[%clk 0:02:24.4]} 12... Nxc4 {[%clk
0:02:24.5]} 13. Qxc4 {[%clk 0:02:23.7]} 13... Nd5 {[%clk 0:02:04.6]} 14. Bd2
{[%clk 0:02:06.7]} 14... Qd7 {[%clk 0:01:37.8]} 15. e4 {[%clk 0:02:03.7]} 15...
Nb6 {[%clk 0:01:38]} 16. Qd3 {[%clk 0:01:57.3]} 16... c5 {[%clk 0:01:35.1]} 17.
d5 {[%clk 0:01:42.8]} 17... exd5 {[%clk 0:01:32.1]} 18. Nxd5 {[%clk 0:01:31.1]}
18... Nxd5 {[%clk 0:01:30.6]} 19. exd5 {[%clk 0:01:31]} 19... Rac8 {[%clk
0:01:23.1]} 20. Bf4 {[%clk 0:01:21.5]} 20... Bf6 {[%clk 0:01:19.8]} 21. b3
{[%clk 0:01:14.2]} 21... Bh3 {[%clk 0:01:11.7]} 22. Bxh3 {[%clk 0:01:03.8]}
22... Qxh3 {[%clk 0:01:12.6]} 23. Bd6 {[%clk 0:00:54.8]} 23... Rfd8 {[%clk
0:01:05.7]} 24. Bxc5 {[%clk 0:00:54.4]} 1/2-1/2

[Event "*** SCC Grand Prix: Titled Tuesday Blitz"]
[Site "Chess.com"]
[Date "2020.09.29"]
[Round "4"]
[White "GMJustin"]
[Black "pedro_nascimento85"]
[Result "0-1"]
[WhiteElo "2275"]
[BlackElo "2011"]
[TimeControl "180+1"]
[EndTime "10:37:26 PDT"]
[Termination "pedro_nascimento85 won on time"]

1. d4 {[%clk 0:02:57.3]} 1... d5 {[%clk 0:02:58]} 2. c4 {[%clk 0:02:55]} 2... e6
{[%clk 0:02:57.4]} 3. Nc3 {[%clk 0:02:54.5]} 3... Be7 {[%clk 0:02:56]} 4. Nf3
{[%clk 0:02:35.4]} 4... Nf6 {[%clk 0:02:47.2]} 5. Bg5 {[%clk 0:02:26.9]} 5... h6
{[%clk 0:02:46.2]} 6. Bh4 {[%clk 0:02:26.2]} 6... O-O {[%clk 0:02:44.2]} 7. e3
{[%clk 0:02:23.1]} 7... b6 {[%clk 0:02:43.8]} 8. Bd3 {[%clk 0:02:08.1]} 8...
dxc4 {[%clk 0:02:41.7]} 9. Bxc4 {[%clk 0:02:07.4]} 9... Ba6 {[%clk 0:02:42]} 10.
Bxa6 {[%clk 0:01:58.7]} 10... Nxa6 {[%clk 0:02:41.6]} 11. Qa4 {[%clk 0:01:42.5]}
11... Qc8 {[%clk 0:02:39.4]} 12. Ne5 {[%clk 0:01:34.2]} 12... c5 {[%clk
0:02:35.6]} 13. Nc6 {[%clk 0:01:03.5]} 13... Bd8 {[%clk 0:02:32.2]} 14. Nxd8
{[%clk 0:00:57.1]} 14... Rxd8 {[%clk 0:02:30.2]} 15. Bxf6 {[%clk 0:00:53.5]}
15... gxf6 {[%clk 0:02:29.6]} 16. O-O {[%clk 0:00:36.3]} 16... cxd4 {[%clk
0:02:27.1]} 17. exd4 {[%clk 0:00:36.2]} 17... Nc7 {[%clk 0:02:26.7]} 18. Ne4
{[%clk 0:00:20.9]} 18... Nd5 {[%clk 0:02:19.1]} 19. Rac1 {[%clk 0:00:20]} 19...
Qb8 {[%clk 0:02:13]} 20. Rfd1 {[%clk 0:00:12.1]} 20... Qf4 {[%clk 0:02:11]} 21.
Ng3 {[%clk 0:00:08.6]} 21... Qg5 {[%clk 0:01:41.8]} 22. Rc6 {[%clk 0:00:06.2]}
22... Nf4 {[%clk 0:01:38]} 23. Qb3 {[%clk 0:00:05.2]} 23... h5 {[%clk
0:01:34.8]} 24. Qf3 {[%clk 0:00:04.2]} 24... h4 {[%clk 0:01:33.5]} 25. Ne4
{[%clk 0:00:04.1]} 25... Qh6 {[%clk 0:01:30.8]} 26. Nd6 {[%clk 0:00:02.5]} 26...
Nd5 {[%clk 0:01:25.4]} 0-1

[Event "*** SCC Grand Prix: Titled Tuesday Blitz"]
[Site "Chess.com"]
[Date "2020.09.29"]
[Round "4"]
[White "ajdemipopushi"]
[Black "Khnykin_Nikolay"]
[Result "1-0"]
[WhiteElo "2333"]
[BlackElo "2071"]
[TimeControl "180+1"]
[EndTime "10:37:29 PDT"]
[Termination "ajdemipopushi won on time"]

1. Nf3 {[%clk 0:03:00.9]} 1... e6 {[%clk 0:02:59.4]} 2. g3 {[%clk 0:03:01.1]}
2... d5 {[%clk 0:02:59.5]} 3. c4 {[%clk 0:03:01.3]} 3... Nf6 {[%clk 0:03:00.4]}
4. Bg2 {[%clk 0:03:01.7]} 4... c5 {[%clk 0:02:58.5]} 5. O-O {[%clk 0:03:00.9]}
5... Bd6 {[%clk 0:02:58]} 6. d4 {[%clk 0:02:56.8]} 6... O-O {[%clk 0:02:52.2]}
7. cxd5 {[%clk 0:02:55.4]} 7... exd5 {[%clk 0:02:50.9]} 8. Nc3 {[%clk
0:02:54.8]} 8... Nc6 {[%clk 0:02:45.9]} 9. Bg5 {[%clk 0:02:54.2]} 9... Be6
{[%clk 0:02:37.8]} 10. dxc5 {[%clk 0:02:47.6]} 10... Bxc5 {[%clk 0:02:36.1]} 11.
Bxf6 {[%clk 0:02:47.8]} 11... gxf6 {[%clk 0:02:31.8]} 12. Rc1 {[%clk 0:02:44.6]}
12... Bb6 {[%clk 0:02:27.3]} 13. e3 {[%clk 0:02:40.6]} 13... Kh8 {[%clk
0:02:26.3]} 14. Ne2 {[%clk 0:02:39.5]} 14... Rg8 {[%clk 0:02:25.3]} 15. Ned4
{[%clk 0:02:35.6]} 15... Qd7 {[%clk 0:02:15.1]} 16. a3 {[%clk 0:02:23.1]} 16...
Bh3 {[%clk 0:02:11.1]} 17. Bxh3 {[%clk 0:02:15.2]} 17... Qxh3 {[%clk 0:02:09.9]}
18. Nxc6 {[%clk 0:02:13.5]} 18... bxc6 {[%clk 0:02:08.6]} 19. Rxc6 {[%clk
0:02:12.8]} 19... Rad8 {[%clk 0:02:01]} 20. Nd4 {[%clk 0:02:09.1]} 20... Rg6
{[%clk 0:01:45.2]} 21. Qf3 {[%clk 0:02:07]} 21... Qh6 {[%clk 0:01:12.7]} 22. Nf5
{[%clk 0:01:57.4]} 22... Qf8 {[%clk 0:00:49.1]} 23. Rfc1 {[%clk 0:01:56]} 23...
h6 {[%clk 0:00:24.8]} 24. b4 {[%clk 0:01:53.9]} 24... Kh7 {[%clk 0:00:24.1]} 25.
Nh4 {[%clk 0:01:48.1]} 25... Rg8 {[%clk 0:00:19.2]} 26. Rxf6 {[%clk 0:01:43.6]}
26... Rd7 {[%clk 0:00:19.1]} 27. Rcc6 {[%clk 0:01:42.2]} 27... Bd8 {[%clk
0:00:10.6]} 28. Qf5+ {[%clk 0:01:39.5]} 28... Rg6 {[%clk 0:00:07.3]} 29. Nxg6
{[%clk 0:01:39.1]} 29... Qg7 {[%clk 0:00:06.8]} 30. Ne5+ {[%clk 0:01:34.4]}
30... Kh8 {[%clk 0:00:05.1]} 31. Nxd7 {[%clk 0:01:33.1]} 31... Bxf6 {[%clk
0:00:03.1]} 32. Rxf6 {[%clk 0:01:32.2]} 1-0

[Event "*** SCC Grand Prix: Titled Tuesday Blitz"]
[Site "Chess.com"]
[Date "2020.09.29"]
[Round "4"]
[White "Sueetin"]
[Black "Vision_64"]
[Result "0-1"]
[WhiteElo "2287"]
[BlackElo "2217"]
[TimeControl "180+1"]
[EndTime "10:37:31 PDT"]
[Termination "Vision_64 won by resignation"]

1. d4 {[%clk 0:03:00.9]} 1... Nf6 {[%clk 0:02:59]} 2. c4 {[%clk 0:03:00.7]} 2...
e6 {[%clk 0:02:56.1]} 3. Nc3 {[%clk 0:03:00.5]} 3... Bb4 {[%clk 0:02:53.9]} 4.
e3 {[%clk 0:03:00.7]} 4... c5 {[%clk 0:02:53.7]} 5. Ne2 {[%clk 0:02:57.5]} 5...
b6 {[%clk 0:02:50.6]} 6. a3 {[%clk 0:02:56.4]} 6... Ba5 {[%clk 0:02:50.9]} 7.
Rb1 {[%clk 0:02:54.6]} 7... Na6 {[%clk 0:02:51.1]} 8. Bd2 {[%clk 0:02:14.3]}
8... Bb7 {[%clk 0:02:49.8]} 9. f3 {[%clk 0:02:07.4]} 9... O-O {[%clk 0:02:44.2]}
10. Ng3 {[%clk 0:02:03.6]} 10... cxd4 {[%clk 0:02:28.1]} 11. exd4 {[%clk
0:02:03.4]} 11... Bxc3 {[%clk 0:02:24.4]} 12. bxc3 {[%clk 0:02:04.3]} 12... Qc7
{[%clk 0:02:10.2]} 13. Bd3 {[%clk 0:01:59.9]} 13... d5 {[%clk 0:02:06.2]} 14.
cxd5 {[%clk 0:01:33.7]} 14... Nxd5 {[%clk 0:02:04.7]} 15. Rc1 {[%clk 0:01:19.9]}
15... Nf4 {[%clk 0:01:54.6]} 16. Qc2 {[%clk 0:00:56.3]} 16... Nxd3+ {[%clk
0:01:40.8]} 17. Qxd3 {[%clk 0:00:57.2]} 17... Rad8 {[%clk 0:01:36.3]} 18. Qe3
{[%clk 0:00:46.8]} 18... Qc4 {[%clk 0:01:25.6]} 19. Nh5 {[%clk 0:00:34.5]} 19...
Rd5 {[%clk 0:00:53.8]} 20. g3 {[%clk 0:00:13.2]} 20... Rxh5 {[%clk 0:00:49.9]}
0-1

[Event "*** SCC Grand Prix: Titled Tuesday Blitz"]
[Site "Chess.com"]
[Date "2020.09.29"]
[Round "4"]
[White "deribas12345"]
[Black "Kaslask"]
[Result "1-0"]
[WhiteElo "2625"]
[BlackElo "2350"]
[TimeControl "180+1"]
[EndTime "10:37:33 PDT"]
[Termination "deribas12345 won by resignation"]

1. d4 {[%clk 0:03:00.9]} 1... Nf6 {[%clk 0:02:59.3]} 2. c4 {[%clk 0:03:00.6]}
2... e6 {[%clk 0:02:59.2]} 3. Nc3 {[%clk 0:02:59.9]} 3... d5 {[%clk 0:02:59]} 4.
cxd5 {[%clk 0:02:59.5]} 4... exd5 {[%clk 0:02:56.8]} 5. Bg5 {[%clk 0:02:59.4]}
5... Nbd7 {[%clk 0:02:56]} 6. e3 {[%clk 0:02:59.2]} 6... Be7 {[%clk 0:02:54.6]}
7. Bd3 {[%clk 0:02:59.3]} 7... c6 {[%clk 0:02:53.7]} 8. Nge2 {[%clk 0:02:58.8]}
8... O-O {[%clk 0:02:46.8]} 9. O-O {[%clk 0:02:58.4]} 9... Re8 {[%clk
0:02:46.7]} 10. Qc2 {[%clk 0:02:54.9]} 10... Nf8 {[%clk 0:02:45.6]} 11. f3
{[%clk 0:02:52]} 11... g6 {[%clk 0:02:44.5]} 12. Rae1 {[%clk 0:02:46.1]} 12...
Ne6 {[%clk 0:02:43.9]} 13. Bh4 {[%clk 0:02:45.4]} 13... b5 {[%clk 0:02:43.5]}
14. Kh1 {[%clk 0:02:43.5]} 14... Bb7 {[%clk 0:02:41.3]} 15. a3 {[%clk
0:02:36.9]} 15... a6 {[%clk 0:02:39.3]} 16. g4 {[%clk 0:02:31.8]} 16... c5
{[%clk 0:02:35.8]} 17. Rg1 {[%clk 0:02:27]} 17... Rc8 {[%clk 0:02:33]} 18. Bf5
{[%clk 0:02:24.1]} 18... cxd4 {[%clk 0:02:23.7]} 19. Nxd4 {[%clk 0:02:21.7]}
19... Nxd4 {[%clk 0:02:21.9]} 20. exd4 {[%clk 0:02:19.9]} 20... gxf5 {[%clk
0:02:17.3]} 21. Qxf5 {[%clk 0:02:19.4]} 21... Rc6 {[%clk 0:02:02.3]} 22. Rxe7
{[%clk 0:02:12.9]} 22... Qxe7 {[%clk 0:02:00.4]} 23. Nxd5 {[%clk 0:02:11.4]}
23... Nxd5 {[%clk 0:01:55.5]} 24. Bxe7 {[%clk 0:02:09.5]} 24... Nxe7 {[%clk
0:01:54.9]} 25. Qd7 {[%clk 0:02:05.6]} 25... Rb8 {[%clk 0:01:50.3]} 26. Qxe7
{[%clk 0:02:04.2]} 26... Re6 {[%clk 0:01:45.6]} 27. Qg5+ {[%clk 0:02:03.1]}
27... Kh8 {[%clk 0:01:23.8]} 28. Qf4 {[%clk 0:02:00.9]} 28... Rbe8 {[%clk
0:01:18.9]} 29. d5 {[%clk 0:01:58.8]} 29... Bxd5 {[%clk 0:01:16.7]} 30. Qd4+
{[%clk 0:01:57]} 30... Re5 {[%clk 0:01:16.6]} 31. Re1 {[%clk 0:01:44.4]} 31...
Bxf3+ {[%clk 0:01:16.2]} 32. Kg1 {[%clk 0:01:43.8]} 32... f6 {[%clk 0:01:16.2]}
33. Rxe5 {[%clk 0:01:42.1]} 33... fxe5 {[%clk 0:01:14.5]} 34. Qd6 {[%clk
0:01:31.9]} 34... e4 {[%clk 0:01:06.2]} 35. Kf2 {[%clk 0:01:22.3]} 35... e3+
{[%clk 0:01:00.1]} 36. Ke1 {[%clk 0:01:17.6]} 36... Kg8 {[%clk 0:00:48.5]} 37.
Qf4 {[%clk 0:00:58.3]} 37... Bd5 {[%clk 0:00:45.9]} 38. Qg5+ {[%clk 0:00:58]}
1-0

[Event "*** SCC Grand Prix: Titled Tuesday Blitz"]
[Site "Chess.com"]
[Date "2020.09.29"]
[Round "4"]
[White "Chessbard1972"]
[Black "teacher4chess"]
[Result "1-0"]
[WhiteElo "2294"]
[BlackElo "2008"]
[TimeControl "180+1"]
[EndTime "10:37:37 PDT"]
[Termination "Chessbard1972 won on time"]

1. e4 {[%clk 0:03:00.9]} 1... Nf6 {[%clk 0:02:57.1]} 2. e5 {[%clk 0:03:00.3]}
2... Nd5 {[%clk 0:02:56.8]} 3. d4 {[%clk 0:03:00.8]} 3... Nb6 {[%clk 0:02:56.6]}
4. Nf3 {[%clk 0:03:00.8]} 4... d5 {[%clk 0:02:55.8]} 5. h3 {[%clk 0:02:59.2]}
5... Bf5 {[%clk 0:02:49.2]} 6. Nh4 {[%clk 0:02:58]} 6... Be4 {[%clk 0:02:39.5]}
7. Nc3 {[%clk 0:02:53.2]} 7... e6 {[%clk 0:02:37.6]} 8. Nxe4 {[%clk 0:02:45.5]}
8... dxe4 {[%clk 0:01:22.9]} 9. g3 {[%clk 0:02:42.9]} 9... Nc6 {[%clk 0:01:22]}
10. c3 {[%clk 0:02:40.9]} 10... Be7 {[%clk 0:01:12]} 11. Ng2 {[%clk 0:02:38.3]}
11... O-O {[%clk 0:01:10.8]} 12. Be2 {[%clk 0:02:30.9]} 12... f6 {[%clk
0:00:53.4]} 13. exf6 {[%clk 0:02:28.3]} 13... Bxf6 {[%clk 0:00:49.3]} 14. O-O
{[%clk 0:02:26.9]} 14... e5 {[%clk 0:00:40.9]} 15. Qb3+ {[%clk 0:02:20.7]} 15...
Kh8 {[%clk 0:00:33.5]} 16. d5 {[%clk 0:02:09.2]} 16... Qxd5 {[%clk 0:00:29.9]}
17. c4 {[%clk 0:02:07.3]} 17... Qe6 {[%clk 0:00:26.2]} 18. Kh2 {[%clk
0:02:03.2]} 18... Nd4 {[%clk 0:00:24.8]} 19. Qd1 {[%clk 0:02:01.5]} 19... Nxe2
{[%clk 0:00:23]} 20. Qxe2 {[%clk 0:02:01.1]} 20... Qxc4 {[%clk 0:00:21.5]} 21.
Qxc4 {[%clk 0:01:59.5]} 21... Nxc4 {[%clk 0:00:21.4]} 22. b3 {[%clk 0:01:59.8]}
22... Nd6 {[%clk 0:00:19.5]} 23. Ba3 {[%clk 0:01:58.9]} 23... Rfd8 {[%clk
0:00:18.4]} 24. Rfe1 {[%clk 0:01:56]} 24... Kg8 {[%clk 0:00:12]} 25. Rac1 {[%clk
0:01:54.3]} 25... Nb5 {[%clk 0:00:06.8]} 26. Bc5 {[%clk 0:01:35.8]} 26... b6
{[%clk 0:00:03.3]} 27. Be3 {[%clk 0:01:34.6]} 27... Nd4 {[%clk 0:00:02.9]} 28.
Red1 {[%clk 0:01:28.5]} 28... Nf3+ {[%clk 0:00:01.7]} 29. Kh1 {[%clk 0:01:28.5]}
29... c5 {[%clk 0:00:01.5]} 30. Ne1 {[%clk 0:01:25.5]} 1-0

[Event "*** SCC Grand Prix: Titled Tuesday Blitz"]
[Site "Chess.com"]
[Date "2020.09.29"]
[Round "4"]
[White "Misticpikachu"]
[Black "JoliyRoger"]
[Result "1-0"]
[WhiteElo "2316"]
[BlackElo "2429"]
[TimeControl "180+1"]
[EndTime "10:37:42 PDT"]
[Termination "Misticpikachu won by checkmate"]

1. c4 {[%clk 0:03:00.2]} 1... Nf6 {[%clk 0:02:59.6]} 2. Nc3 {[%clk 0:02:58.8]}
2... c5 {[%clk 0:03:00]} 3. Nf3 {[%clk 0:02:58.6]} 3... e6 {[%clk 0:03:00.5]} 4.
g3 {[%clk 0:02:56.2]} 4... Be7 {[%clk 0:03:00.6]} 5. Bg2 {[%clk 0:02:56.1]} 5...
O-O {[%clk 0:03:01.2]} 6. O-O {[%clk 0:02:56.5]} 6... Nc6 {[%clk 0:03:01.8]} 7.
d4 {[%clk 0:02:56.2]} 7... cxd4 {[%clk 0:03:02.3]} 8. Nxd4 {[%clk 0:02:56.6]}
8... Ne5 {[%clk 0:03:03]} 9. b3 {[%clk 0:02:56.5]} 9... d6 {[%clk 0:03:03]} 10.
Bb2 {[%clk 0:02:56.9]} 10... a6 {[%clk 0:03:03.2]} 11. Rc1 {[%clk 0:02:56.6]}
11... Qc7 {[%clk 0:03:03.5]} 12. f4 {[%clk 0:02:52]} 12... Ng6 {[%clk
0:03:02.8]} 13. f5 {[%clk 0:02:44.2]} 13... Ne5 {[%clk 0:03:02.1]} 14. Ne4
{[%clk 0:02:34.8]} 14... Re8 {[%clk 0:02:45.8]} 15. fxe6 {[%clk 0:02:23.1]}
15... fxe6 {[%clk 0:02:45.4]} 16. Ng5 {[%clk 0:02:13.5]} 16... Bf8 {[%clk
0:02:42.5]} 17. Ndf3 {[%clk 0:01:48.4]} 17... Neg4 {[%clk 0:02:32.9]} 18. Qd4
{[%clk 0:01:36.9]} 18... h6 {[%clk 0:02:25.9]} 19. Ne4 {[%clk 0:01:29.4]} 19...
e5 {[%clk 0:02:11.3]} 20. Nxf6+ {[%clk 0:01:23.6]} 20... Nxf6 {[%clk 0:02:11.8]}
21. Qd2 {[%clk 0:01:21.4]} 21... Rb8 {[%clk 0:02:01.9]} 22. Nh4 {[%clk
0:01:17.5]} 22... b5 {[%clk 0:01:49.9]} 23. cxb5 {[%clk 0:01:16.2]} 23... Qb6+
{[%clk 0:01:50.4]} 24. Kh1 {[%clk 0:01:16.3]} 24... axb5 {[%clk 0:01:48.5]} 25.
Qd3 {[%clk 0:00:57.7]} 25... b4 {[%clk 0:01:40.1]} 26. Rc6 {[%clk 0:00:54]}
26... Qb5 {[%clk 0:01:36.2]} 27. Qg6 {[%clk 0:00:49.2]} 27... Re6 {[%clk
0:01:12.7]} 28. Nf5 {[%clk 0:00:28.3]} 28... Kh8 {[%clk 0:01:12.6]} 29. Nxh6
{[%clk 0:00:24.1]} 29... gxh6 {[%clk 0:01:12.4]} 30. Rxf6 {[%clk 0:00:22.5]}
30... Qxe2 {[%clk 0:00:54.4]} 31. Rxf8# {[%clk 0:00:20]} 1-0

[Event "*** SCC Grand Prix: Titled Tuesday Blitz"]
[Site "Chess.com"]
[Date "2020.09.29"]
[Round "4"]
[White "ChessWarrior3"]
[Black "PowerThinking2650"]
[Result "0-1"]
[WhiteElo "2150"]
[BlackElo "2380"]
[TimeControl "180+1"]
[EndTime "10:37:42 PDT"]
[Termination "PowerThinking2650 won by resignation"]

1. e4 {[%clk 0:03:00.9]} 1... e5 {[%clk 0:02:59.6]} 2. Nf3 {[%clk 0:03:00.1]}
2... Nc6 {[%clk 0:02:59.7]} 3. Bb5 {[%clk 0:03:00.1]} 3... a6 {[%clk 0:02:59.1]}
4. Ba4 {[%clk 0:03:00]} 4... Nf6 {[%clk 0:02:59.2]} 5. O-O {[%clk 0:02:57.2]}
5... Be7 {[%clk 0:02:59.1]} 6. Re1 {[%clk 0:02:50.6]} 6... b5 {[%clk 0:02:58.8]}
7. Bb3 {[%clk 0:02:48.5]} 7... d6 {[%clk 0:02:58.1]} 8. c3 {[%clk 0:02:37.9]}
8... O-O {[%clk 0:02:57.2]} 9. d4 {[%clk 0:02:37.6]} 9... Bg4 {[%clk 0:02:55.8]}
10. Be3 {[%clk 0:02:34.6]} 10... exd4 {[%clk 0:02:52.2]} 11. cxd4 {[%clk
0:02:33.4]} 11... d5 {[%clk 0:02:52.5]} 12. e5 {[%clk 0:02:31.4]} 12... Ne4
{[%clk 0:02:52.3]} 13. Bc2 {[%clk 0:02:23.8]} 13... f5 {[%clk 0:02:45.5]} 14. h3
{[%clk 0:02:17.2]} 14... Bh5 {[%clk 0:02:39]} 15. Nc3 {[%clk 0:02:03.4]} 15...
Kh8 {[%clk 0:02:16.4]} 16. Qc1 {[%clk 0:01:53.2]} 16... Nxc3 {[%clk 0:01:46.8]}
17. bxc3 {[%clk 0:01:51.5]} 17... Bxf3 {[%clk 0:01:37.7]} 18. gxf3 {[%clk
0:01:49.4]} 18... Bh4 {[%clk 0:01:10]} 19. Bf4 {[%clk 0:01:45.9]} 19... g5
{[%clk 0:01:07.2]} 20. Bg3 {[%clk 0:01:44.3]} 20... Bxg3 {[%clk 0:00:53.7]} 21.
fxg3 {[%clk 0:01:45.2]} 21... Qe7 {[%clk 0:00:44.1]} 22. f4 {[%clk 0:01:39]}
22... gxf4 {[%clk 0:00:38.2]} 23. Qxf4 {[%clk 0:01:39.9]} 23... Nd8 {[%clk
0:00:36.8]} 24. e6 {[%clk 0:01:28.3]} 24... Nxe6 {[%clk 0:00:23.6]} 25. Qe5+
{[%clk 0:01:26.1]} 25... Qg7 {[%clk 0:00:23.3]} 26. Qxe6 {[%clk 0:00:57.4]}
26... Qxg3+ {[%clk 0:00:22.2]} 27. Kh1 {[%clk 0:00:54.2]} 27... Qxh3+ {[%clk
0:00:20.2]} 28. Kg1 {[%clk 0:00:54.3]} 28... Rg8+ {[%clk 0:00:19.5]} 29. Kf2
{[%clk 0:00:54.3]} 29... Rg2+ {[%clk 0:00:18.8]} 0-1